fUSD/lending_fUSD_20240529
["ID","MTS","AMOUNT","RATE_DAILY","PERIOD"]
[328180670,1717015838852,-176.2480091,0.00012989,2]
[328180671,1717015838862,-6383.6415758,0.00012989,2]
[328180672,1717015838871,-212.4751938,0.00012989,2]
[328180673,1717015838880,-179.0,0.0001299,2]
[328180674,1717015838890,-154.458,0.0001299,2]
[328180675,1717015838899,-243.56484948,0.0001299,2]
[328180676,1717015838909,-151.26,0.0001299,2]
[328180677,1717015838919,-151.26,0.0001299,2]
[328180678,1717015838928,-549.37571185,0.00012998,2]
[328180679,1717015838937,-361.64022012,0.00012998,2]
[328180680,1717015838946,-204.9501833,0.00012998,2]
[328180681,1717015838955,-531.0,0.00013,2]
[328180682,1717015838964,-792654.16974456,0.00013,2]
[328180683,1717015838973,-946.4753,0.00013,2]
[328180684,1717015838982,-332.0,0.00013,2]
[328180685,1717015838992,-332.0,0.00013,2]
[328180686,1717015839001,-332.0,0.00013,2]
[328180687,1717015839010,-332.0,0.00013,2]
[328180688,1717015839020,-332.0,0.00013,2]
[328180689,1717015839029,-332.0,0.00013,2]
[328180690,1717015839039,-332.0,0.00013,2]
[328180691,1717015839049,-332.0,0.00013,2]
[328180692,1717015839059,-332.0,0.00013,2]
[328180693,1717015839068,-332.0,0.00013,2]
[328180694,1717015839077,-332.0,0.00013,2]
[328180695,1717015839087,-332.0,0.00013,2]
[328180696,1717015839097,-332.0,0.00013,2]
[328180697,1717015839106,-332.0,0.00013,2]
[328180698,1717015839116,-3330.93391713,0.00013,2]
[328180699,1717015839125,-359834.05507675,0.00013,2]
[328180700,1717015839135,-21060.66866752,0.00013,2]
[328180701,1717015839145,-180.38347101,0.00013,2]
[328180702,1717015839155,-1000.0,0.00013,2]
[328180703,1717015839163,-1000.0,0.00013,2]
[328180704,1717015839172,-1000.0,0.00013,2]
[328180705,1717015839182,-1000.0,0.00013,2]
[328180706,1717015839191,-1000.0,0.00013,2]
[328180707,1717015839201,-1000.0,0.00013,2]
[328180708,1717015839210,-1000.0,0.00013,2]
[328180709,1717015839219,-1000.0,0.00013,2]
[328180710,1717015839229,-1000.0,0.00013,2]
[328180711,1717015839238,-1000.0,0.00013,2]
[328180712,1717015839247,-1000.0,0.00013,2]
[328180713,1717015839262,-545.0,0.00013,2]
[328180714,1717015839283,-2000.0,0.00013,2]
[328180715,1717015839298,-200.0,0.00013,2]
[328180716,1717015839316,-92319.16702172,0.00013,2]
[328180717,1717015839338,-151.0,0.00013,2]
[328180718,1717015839355,-188.7,0.00013,2]
[328180719,1717015839372,-152.59985,0.00013,2]
[328180720,1717015839390,-151.0,0.00013,2]
[328180721,1717015839405,-151.0,0.00013,2]
[328180722,1717015839422,-151.0,0.00013,2]
[328180723,1717015839440,-153.192831,0.00013,2]
[328180724,1717015839462,-154.947923,0.00013,2]
[328180725,1717015839475,-2000.0,0.00013,2]
[328180726,1717015839492,-151.0,0.00013,2]
[328180727,1717015839508,-151.0,0.00013,2]
[328180728,1717015839525,-151.0,0.00013,2]
[328180729,1717015839538,-241.326377,0.00013,2]
[328180730,1717015839553,-151.0,0.00013,2]
[328180731,1717015839570,-151.0,0.00013,2]
[328180732,1717015839585,-151.0,0.00013,2]
[328180733,1717015839599,-200.0,0.00013,2]
[328180734,1717015839614,-151.0,0.00013,2]
[328180735,1717015839628,-151.0,0.00013,2]
[328180736,1717015839643,-153.511556,0.00013,2]
[328180737,1717015839658,-151.0,0.00013,2]
[328180738,1717015839672,-151.0,0.00013,2]
[328180739,1717015839687,-151.0,0.00013,2]
[328180740,1717015839702,-151.0,0.00013,2]
[328180741,1717015839716,-155.152361,0.00013,2]
[328180742,1717015839731,-151.0,0.00013,2]
[328180743,1717015839747,-151.0,0.00013,2]
[328180744,1717015839761,-151.0,0.00013,2]
[328180745,1717015839776,-151.0,0.00013,2]
[328180746,1717015839791,-151.0,0.00013,2]
[328180747,1717015839806,-151.0,0.00013,2]
[328180748,1717015839820,-164.999087,0.00013,2]
[328180749,1717015839836,-151.0,0.00013,2]
[328180750,1717015839851,-151.0,0.00013,2]
[328180751,1717015839866,-151.0,0.00013,2]
[328180752,1717015839880,-151.0,0.00013,2]
[328180753,1717015839894,-151.0,0.00013,2]
[328180754,1717015839910,-151.0,0.00013,2]
[328180755,1717015839924,-151.0,0.00013,2]
[328180756,1717015839939,-151.0,0.00013,2]
[328180757,1717015839954,-151.0,0.00013,2]
[328180758,1717015839968,-153.883271,0.00013,2]
[328180759,1717015839982,-151.0,0.00013,2]
[328180760,1717015839998,-151.0,0.00013,2]
[328180761,1717015840013,-151.0,0.00013,2]
[328180762,1717015840029,-151.0,0.00013,2]
[328180763,1717015840044,-151.0,0.00013,2]
[328180764,1717015840058,-151.0,0.00013,2]
[328180765,1717015840074,-151.861245,0.00013,2]
[328180766,1717015840089,-151.0,0.00013,2]
[328180767,1717015840104,-151.0,0.00013,2]
[328180768,1717015840118,-151.0,0.00013,2]
[328180769,1717015840133,-151.0,0.00013,2]
[328180770,1717015840148,-153.758168,0.00013,2]
[328180771,1717015840163,-151.563785,0.00013,2]
[328180772,1717015840178,-151.0,0.00013,2]
[328180773,1717015840193,-151.0,0.00013,2]
[328180774,1717015840328,-500.0,0.00013,2]
[328180775,1717015840350,-151.0,0.00013,2]
[328180776,1717015840360,-151.0,0.00013,2]
[328180777,1717015840369,-500.0,0.00013,2]
[328180778,1717015840378,-500.0,0.00013,2]
[328180779,1717015840387,-2000.0,0.00013,2]
[328180780,1717015840396,-379.358604,0.00013,2]
[328180781,1717015840406,-379.358604,0.00013,2]
[328180782,1717015840415,-379.358604,0.00013,2]
[328180783,1717015840424,-379.358604,0.00013,2]
[328180784,1717015840433,-153.328968,0.00013,2]
[328180785,1717015840448,-200.0,0.00013,2]
[328180786,1717015840458,-290.5915,0.00013,2]
[328180787,1717015840467,-151.0,0.00013,2]
[328180788,1717015840476,-151.0,0.00013,2]
[328180789,1717015840487,-151.0,0.00013,2]
[328180790,1717015840496,-168.945474,0.00013,2]
[328180791,1717015840505,-151.0,0.00013,2]
[328180792,1717015840515,-151.0,0.00013,2]
[328180793,1717015840525,-151.0,0.00013,2]
[328180794,1717015840535,-152.590138,0.00013,2]
[328180795,1717015840544,-151.0,0.00013,2]
[328180796,1717015840554,-151.0,0.00013,2]
[328180797,1717015840563,-151.0,0.00013,2]
[328180798,1717015840573,-223.253809,0.00013,2]
[328180799,1717015840582,-151.0,0.00013,2]
[328180800,1717015840591,-151.0,0.00013,2]
[328180801,1717015840600,-151.0,0.00013,2]
[328180802,1717015840610,-153.011343,0.00013,2]
[328180803,1717015840620,-151.0,0.00013,2]
[328180804,1717015840629,-154.415366,0.00013,2]
[328180805,1717015840638,-3000.0,0.00013,2]
[328180806,1717015840647,-152.39018,0.00013,2]
[328180807,1717015840658,-151.0,0.00013,2]
[328180808,1717015840667,-151.0,0.00013,2]
[328180809,1717015840677,-152.928547,0.00013,2]
[328180810,1717015840687,-151.0,0.00013,2]
[328180811,1717015840696,-151.0,0.00013,2]
[328180812,1717015840706,-236.48222182,0.00013,2]
[328180813,1717015840715,-151.0,0.00013,2]
[328180814,1717015840725,-151.0,0.00013,2]
[328180815,1717015840734,-151.0,0.00013,2]
[328180816,1717015840743,-151.0,0.00013,2]
[328180817,1717015840753,-151.0,0.00013,2]
[328180818,1717015840763,-151.0,0.00013,2]
[328180819,1717015840772,-151.0,0.00013,2]
[328180820,1717015840782,-151.0,0.00013,2]
[328180821,1717015840791,-152.556099,0.00013,2]
[328180822,1717015840800,-151.0,0.00013,2]
[328180823,1717015840810,-151.0,0.00013,2]
[328180824,1717015840820,-246.097025,0.00013,2]
[328180825,1717015840829,-246.097025,0.00013,2]
[328180826,1717015840838,-246.097025,0.00013,2]
[328180827,1717015840847,-246.097025,0.00013,2]
[328180828,1717015840857,-500.0,0.00013,2]
[328180829,1717015840866,-500.0,0.00013,2]
[328180830,1717015840875,-500.0,0.00013,2]
[328180831,1717015840885,-153.447692,0.00013,2]
[328180832,1717015840894,-500.0,0.00013,2]
[328180833,1717015840904,-500.0,0.00013,2]
[328180834,1717015840913,-151.0,0.00013,2]
[328180835,1717015840923,-151.0,0.00013,2]
[328180836,1717015840932,-500.0,0.00013,2]
[328180837,1717015840942,-500.0,0.00013,2]
[328180838,1717015840951,-500.0,0.00013,2]
[328180839,1717015840960,-151.0,0.00013,2]
[328180840,1717015840969,-151.0,0.00013,2]
[328180841,1717015840979,-500.0,0.00013,2]
[328180842,1717015840988,-151.0,0.00013,2]
[328180843,1717015840998,-151.0,0.00013,2]
[328180844,1717015841007,-151.0,0.00013,2]
[328180845,1717015841017,-151.0,0.00013,2]
[328180846,1717015841026,-803.843456,0.00013,2]
[328180847,1717015841035,-803.843456,0.00013,2]
[328180848,1717015841044,-151.0,0.00013,2]
[328180849,1717015841054,-151.0,0.00013,2]
[328180850,1717015841063,-803.843456,0.00013,2]
[328180851,1717015841073,-151.0,0.00013,2]
[328180852,1717015841083,-151.0,0.00013,2]
[328180853,1717015841092,-803.843456,0.00013,2]
[328180854,1717015841101,-244.471996,0.00013,2]
[328180855,1717015841110,-244.471996,0.00013,2]
[328180856,1717015841120,-152.65785,0.00013,2]
[328180857,1717015841129,-244.471996,0.00013,2]
[328180858,1717015841138,-244.471996,0.00013,2]
[328180859,1717015841147,-151.0,0.00013,2]
[328180860,1717015841158,-156.958777,0.00013,2]
[328180861,1717015841167,-151.0,0.00013,2]
[328180862,1717015841177,-151.0,0.00013,2]
[328180863,1717015841186,-151.0,0.00013,2]
[328180864,1717015841195,-151.0,0.00013,2]
[328180865,1717015841204,-840.0,0.00013,2]
[328180866,1717015841213,-840.0,0.00013,2]
[328180867,1717015841223,-840.0,0.00013,2]
[328180868,1717015841232,-840.0,0.00013,2]
[328180869,1717015841241,-153.223918,0.00013,2]
[328180870,1717015841251,-196.4601,0.00013,2]
[328180871,1717015841259,-196.4601,0.00013,2]
[328180872,1717015841268,-196.4601,0.00013,2]
[328180873,1717015841278,-196.4601,0.00013,2]
[328180874,1717015841287,-151.0,0.00013,2]
[328180875,1717015841296,-151.0,0.00013,2]
[328180876,1717015841305,-151.0,0.00013,2]
[328180877,1717015841315,-151.0,0.00013,2]
[328180878,1717015841324,-151.0,0.00013,2]
[328180879,1717015841333,-151.0,0.00013,2]
[328180880,1717015841343,-151.0,0.00013,2]
[328180881,1717015841352,-151.0,0.00013,2]
[328180882,1717015841361,-165.87244,0.00013,2]
[328180883,1717015841371,-151.0,0.00013,2]
[328180884,1717015841380,-151.0,0.00013,2]
[328180885,1717015841392,-151.0,0.00013,2]
[328180886,1717015841401,-188.580352,0.00013,2]
[328180887,1717015841413,-3676.689,0.0001301,2]
[328180888,1717015841423,-3602.827,0.0001301,2]
[328180889,1717015841433,-24316.0,0.00013014,2]
[328180890,1717015841443,-243.56484948,0.00013116,2]
[328180891,1717015841456,-68602.90277567,0.00013126,2]
[328180892,1717015841466,-2000.0,0.0001313,2]
[328180893,1717015841477,-200.0,0.0001313,2]
[328180894,1717015841487,-2000.0,0.0001313,2]
[328180895,1717015841497,-200.0,0.0001313,2]
[328180896,1717015841506,-2000.0,0.0001313,2]
[328180897,1717015841516,-200.0,0.0001313,2]
[328180898,1717015841527,-6409.46393819,0.00013138,2]
[328180899,1717015841536,-196.4601,0.00013138,2]
[328180900,1717015841546,-196.4601,0.00013138,2]
[328180901,1717015841555,-272.28412,0.00013138,2]
[328180902,1717015841565,-151.0,0.00013138,2]
[328180903,1717015841574,-150.0,0.00013158,2]
[328180904,1717015841583,-2000.0,0.00013261,2]
[328180905,1717015841593,-200.0,0.00013261,2]
[328180906,1717015841602,-2000.0,0.00013261,2]
[328180907,1717015841611,-200.0,0.00013261,2]
[328180908,1717015841621,-2000.0,0.00013261,2]
[328180909,1717015841630,-200.0,0.00013261,2]
[328180910,1717015841639,-151.0,0.00013313,2]
[328180911,1717015841649,-2000.0,0.00013394,2]
[328180912,1717015841660,-200.0,0.00013394,2]
[328180913,1717015841671,-2000.0,0.00013394,2]
[328180914,1717015841680,-200.0,0.00013394,2]
[328180915,1717015841689,-2000.0,0.00013394,2]
[328180916,1717015841699,-200.0,0.00013394,2]
[328180918,1717015841708,-151.0,0.00013426,2]
[328180920,1717015841717,-152.030298,0.00013426,2]
[328180922,1717015841727,-151.0,0.00013426,2]
[328180924,1717015841736,-2000.0,0.00013528,2]
[328180925,1717015841745,-200.0,0.00013528,2]
[328180927,1717015841754,-2000.0,0.00013528,2]
[328180929,1717015841763,-200.0,0.00013528,2]
[328180931,1717015841773,-200.0,0.00013528,2]
[328180933,1717015841782,-468.82618378,0.00013669,2]
[328180934,1717015841792,-200.0,0.00013699,2]
[328180935,1717015841801,-200.0,0.00013699,2]
[328180936,1717015841810,-200.0,0.00013699,2]
[328180937,1717015841819,-2216.68,0.00013699,2]
[328180938,1717015841828,-4461.76,0.00013699,2]
[328180939,1717015841838,-151.0,0.00013699,2]
[328180940,1717015841847,-151.0,0.00013699,2]
[328180941,1717015841857,-151.0,0.00013699,2]
[328180942,1717015841866,-151.0,0.00013699,2]
[328180943,1717015841875,-200.0,0.00013699,2]
[328180944,1717015841884,-500.0,0.00013699,2]
[328180945,1717015841894,-4517.4,0.00013699,2]
[328180946,1717015841905,-2751.0,0.00013699,2]
[328180947,1717015841999,-150.0,0.00013699,2]
[328180948,1717015842009,-150.0,0.00013706,2]
[328180949,1717015842018,-1000.0,0.00013713,2]
[328180950,1717015842028,-416.3,0.00013753,2]
[328180951,1717015842038,-1820.16,0.00013753,2]
[328180952,1717015842047,-151.0,0.00013925,2]
[328180953,1717015842056,-151.0,0.00013925,2]
[328180954,1717015842066,-151.0,0.00013925,2]
[328180955,1717015842075,-151.0,0.00013925,2]
[328180956,1717015842084,-201.380404,0.00013925,2]
[328180957,1717015842093,-154.971735,0.00013925,2]
[328180958,1717015842102,-155.782019,0.00013925,2]
[328180959,1717015842111,-151.0,0.00013925,2]
[328180960,1717015842122,-151.0,0.00013925,2]
[328180961,1717015842132,-151.0,0.00013925,2]
[328180962,1717015842141,-151.0,0.00013925,2]
[328180963,1717015842151,-151.0,0.00013925,2]
[328180964,1717015842161,-151.0,0.00013925,2]
[328180965,1717015842170,-379.358604,0.00013925,2]
[328180966,1717015842179,-379.358604,0.00013925,2]
[328180967,1717015842189,-151.0,0.00013925,2]
[328180968,1717015842199,-151.0,0.00013925,2]
[328180969,1717015842209,-151.0,0.00013925,2]
[328180970,1717015842218,-250.251554,0.00013925,2]
[328180971,1717015842229,-157.373466,0.00013925,2]
[328180972,1717015842238,-151.0,0.00013925,2]
[328180973,1717015842247,-164.65,0.00013973,2]
[328180974,1717015842258,-246.89,0.00013973,2]
[328180975,1717015842268,-150.56,0.00013973,2]
[328180976,1717015842278,-158.97,0.00013973,2]
[328180977,1717015842288,-158.98,0.00013973,2]
[328180978,1717015842297,-250.0,0.00014247,2]
[328180979,1717015842307,-4461.76,0.00014384,2]
[328180980,1717015842318,-468.82618378,0.0001445,2]
[328180981,1717015842327,-354.204038,0.00014521,2]
[328180982,1717015842337,-7359.55983788,0.00014546,2]
[328180983,1717015842348,-350.0,0.00014795,2]
[328180984,1717015842358,-209.87188579,0.000149,2]
[328180985,1717015842368,-209.87188579,0.000149,2]
[328180986,1717015842377,-209.87188579,0.000149,2]
[328180987,1717015842386,-652.05,0.00014933,2]
[328180988,1717015842395,-172.477569,0.00014959,2]
[328180989,1717015842405,-151.0,0.00014959,2]
[328180990,1717015842414,-151.0,0.00014959,2]
[328180991,1717015842423,-151.0,0.00014959,2]
[328180992,1717015842432,-246.097025,0.00014959,2]
[328180993,1717015842442,-246.097025,0.00014959,2]
[328180994,1717015842456,-151.0,0.00014959,2]
[328180995,1717015842465,-151.0,0.00014959,2]
[328180996,1717015842474,-151.0,0.00014959,2]
[328180997,1717015842483,-840.0,0.00014959,2]
[328180998,1717015842494,-840.0,0.00014959,2]
[328180999,1717015842503,-155.21245314,0.00015,2]
[328181000,1717015842512,-326.19881684,0.00015,2]
[328181001,1717015842522,-393.45246391,0.00015,2]
[328181002,1717015842531,-155.41641841,0.00015,2]
[328181003,1717015842541,-8095.42527901,0.00015,2]
[328181004,1717015842550,-621.8774345,0.00015,2]
[328181005,1717015842559,-200.0,0.00015,2]
[328181006,1717015842569,-91980.33638694,0.00015,2]
[328181007,1717015842579,-487.0,0.00015,2]
[328181008,1717015842588,-3736.0,0.00015,2]
[328181010,1717015842599,-801.0,0.00015,2]
[328181012,1717015842609,-220.087231,0.00015,2]
[328181014,1717015842619,-246.846394,0.00015,2]
[328181016,1717015842629,-151.0,0.00015,2]
[328181018,1717015842638,-151.0,0.00015,2]
[328181020,1717015842649,-151.0,0.00015,2]
[328181022,1717015842660,-803.843456,0.00015,2]
[328181024,1717015842671,-151.0,0.00015,2]
[328181026,1717015842680,-803.843456,0.00015,2]
[328181028,1717015842690,-244.471996,0.00015,2]
[328181030,1717015842699,-244.471996,0.00015,2]
[328181032,1717015842708,-151.0,0.00015,2]
[328181034,1717015842717,-151.0,0.00015,2]
[328181036,1717015842727,-196.4601,0.00015,2]
[328181038,1717015842736,-196.4601,0.00015,2]
[328181040,1717015842745,-151.0,0.00015068,2]
[328181042,1717015842754,-151.0,0.00015068,2]
[328181044,1717015842765,-300.0,0.00015068,2]
[328181045,1717015842774,-4461.76,0.00015068,2]
[328181047,1717015842783,-1000.0,0.00015085,2]
[328181049,1717015842792,-468.82618378,0.0001523,2]
[328181051,1717015842802,-1520.67512482,0.00015261,2]
[328181053,1717015842811,-3889.49,0.00015272,2]
[328181055,1717015842821,-270.019014,0.00015272,2]
[328181058,1717015842830,-151.0,0.00015272,2]
[328181060,1717015842840,-151.0,0.00015272,2]
[328181063,1717015842850,-151.0,0.00015272,2]
[328181066,1717015842860,-151.0,0.00015272,2]
[328181069,1717015842870,-151.0,0.00015272,2]
[328181072,1717015842879,-379.358604,0.00015272,2]
[328181075,1717015842888,-379.358604,0.00015272,2]
[328181078,1717015842899,-151.0,0.00015272,2]
[328181080,1717015842908,-151.0,0.00015272,2]
[328181082,1717015842917,-243.99386,0.00015272,2]
[328181084,1717015842926,-294.188466,0.00015272,2]
[328181086,1717015842936,-545.54297139,0.00015342,2]
[328181088,1717015842946,-354.204038,0.00015342,2]
[328181090,1717015842955,-68602.90277567,0.00015348,2]
[328181092,1717015842964,-151.0,0.00015355,2]
[328181094,1717015842973,-151.0,0.00015355,2]
[328181096,1717015842983,-155.770697,0.00015355,2]
[328181098,1717015842992,-6409.46393819,0.00015371,2]
[328181099,1717015843001,-4461.76,0.00015753,2]
[328181101,1717015843011,-167.0,0.00015831,2]
[328181103,1717015843020,-150.0,0.0001599,2]
[328181105,1717015843031,-155.0,0.00016,2]
[328181107,1717015843040,-468.82618378,0.0001601,2]
[328181109,1717015843049,-151.0,0.0001611,2]
[328181111,1717015843058,-151.0,0.0001611,2]
[328181113,1717015843070,-246.097025,0.0001611,2]
[328181115,1717015843079,-246.097025,0.0001611,2]
[328181118,1717015843089,-151.0,0.0001611,2]
[328181119,1717015843098,-151.0,0.0001611,2]
[328181121,1717015843108,-151.0,0.0001611,2]
[328181123,1717015843117,-840.0,0.0001611,2]
[328181125,1717015843126,-840.0,0.0001611,2]
[328181127,1717015843135,-5716.9,0.00016116,2]
[328181129,1717015843145,-3896.23,0.00016116,2]
[328181131,1717015843155,-157.602,0.00016137,2]
[328181133,1717015843164,-157.602,0.00016137,2]
[328181135,1717015843172,-157.602,0.00016137,2]
[328181136,1717015843181,-157.602,0.00016137,2]
[328181138,1717015843190,-157.602,0.00016137,2]
[328181141,1717015843200,-157.602,0.00016137,2]
[328181142,1717015843209,-157.602,0.00016137,2]
[328181143,1717015843218,-157.602,0.00016137,2]
[328181144,1717015843228,-157.602,0.00016137,2]
[328181145,1717015843237,-157.602,0.00016137,2]
[328181147,1717015843246,-354.204038,0.00016164,2]
[328181148,1717015843255,-7359.55983788,0.00016192,2]
[328181150,1717015843264,-167.0,0.00016354,2]
[328181152,1717015843273,-164.81,0.00016389,2]
[328181154,1717015843282,-300.0,0.00016438,2]
[328181156,1717015843291,-3544.25,0.00016438,2]
[328181158,1717015843301,-4461.76,0.00016438,2]
[328181160,1717015843310,-1000.0,0.00016456,2]
[328181162,1717015843319,-1232.35023996,0.000165,2]
[328181164,1717015843328,-179.34,0.00016712,2]
[328181166,1717015843337,-167.0,0.00016876,2]
[328181168,1717015843347,-354.204038,0.00016986,2]
[328181170,1717015843355,-652.05,0.00017171,2]
[328181172,1717015843364,-360.52198616,0.00017184,2]
[328181174,1717015843374,-1236.74291656,0.00017225,2]
[328181176,1717015843383,-167.0,0.00017399,2]
[328181178,1717015843392,-196.4601,0.00017569,2]
[328181180,1717015843401,-196.4601,0.00017569,2]
[328181182,1717015843412,-68602.90277567,0.00017569,2]
[328181184,1717015843422,-6409.46393819,0.00017605,2]
[328181186,1717015843431,-1520.67512482,0.00017724,2]
[328181199,1717015843527,-151.0,0.00017795,2]
[328181202,1717015843537,-354.204038,0.00017808,2]
[328181204,1717015843546,-7359.55983788,0.00017838,2]
[328181206,1717015843555,-167.0,0.00017921,2]
[328181208,1717015843565,-1000.0,0.00018,2]
[328181210,1717015843574,-1110.35323561,0.00018,2]
[328181212,1717015843583,-804.78383526,0.00018,2]
[328181215,1717015843593,-155.41437535,0.00018,2]
[328181217,1717015843604,-151.0,0.00018,2]
[328181219,1717015843613,-151.0,0.00018,2]
[328181221,1717015843622,-151.0,0.00018,2]
[328181223,1717015843632,-151.0,0.00018,2]
[328181225,1717015843641,-185.020307,0.00018,2]
[328181226,1717015843650,-379.358604,0.00018,2]
[328181228,1717015843659,-379.358604,0.00018,2]
[328181230,1717015843669,-151.0,0.00018,2]
[328181232,1717015843679,-151.0,0.00018,2]
[328181234,1717015843688,-3000.0,0.00018,2]
[328181236,1717015843698,-151.0,0.00018197,2]
[328181238,1717015843707,-151.0,0.00018197,2]
[328181240,1717015843716,-1863.71,0.00018389,2]
[328181242,1717015843725,-7707.79530268,0.0001844,2]
[328181244,1717015843734,-167.0,0.00018444,2]
[328181246,1717015843743,-354.204038,0.0001863,2]
[328181248,1717015843752,-1000.0,0.00018795,2]
[328181250,1717015843762,-215.045819,0.00018895,2]
[328181252,1717015843771,-161.284363,0.00018895,2]
[328181254,1717015843780,-239.946903,0.00018895,2]
[328181256,1717015843790,-186.210034,0.00018895,2]
[328181258,1717015843800,-187.537289,0.00018895,2]
[328181260,1717015843809,-177.272045,0.00018895,2]
[328181262,1717015843818,-433.098541,0.00018895,2]
[328181264,1717015843827,-208.773201,0.00018895,2]
[328181266,1717015843837,-328.090213,0.00018895,2]
[328181268,1717015843846,-592.393092,0.00018895,2]
[328181269,1717015843855,-210.262374,0.00018895,2]
[328181272,1717015843865,-167.400919,0.00018895,2]
[328181273,1717015843874,-410.74423217,0.00019,2]
[328181275,1717015843883,-310.0,0.00019,3]
[328181278,1717015843894,-155.19683835,0.00019,2]
[328181280,1717015843903,-155.23918386,0.00019,2]
[328181282,1717015843912,-433.098541,0.00019132,2]
[328181284,1717015843922,-208.773201,0.00019132,2]
[328181285,1717015843931,-328.090213,0.00019132,2]
[328181288,1717015843941,-592.393092,0.00019132,2]
[328181289,1717015843950,-500.0,0.00019178,2]
[328181290,1717015843960,-612.5621652,0.00019178,2]
[328181291,1717015843970,-500.0,0.00019178,2]
[328181292,1717015843979,-500.0,0.00019178,2]
[328181293,1717015843989,-468.35985212,0.00019178,2]
[328181294,1717015843999,-500.0,0.00019178,2]
[328181295,1717015844008,-338.03442934,0.00019178,2]
[328181296,1717015844017,-500.0,0.00019178,2]
[328181297,1717015844026,-156.27684972,0.00019178,2]
[328181298,1717015844035,-500.0,0.00019178,2]
[328181299,1717015844045,-500.0,0.00019178,2]
[328181300,1717015844054,-500.0,0.00019178,2]
[328181301,1717015844063,-500.0,0.00019178,2]
[328181302,1717015844072,-500.0,0.00019178,2]
[328181303,1717015844081,-500.0,0.00019178,2]
[328181304,1717015844090,-420.09862337,0.00019178,2]
[328181305,1717015844099,-499.99999999,0.00019178,2]
[328181306,1717015844108,-242.92423234,0.00019178,2]
[328181307,1717015844118,-526.02958701,0.00019178,2]
[328181308,1717015844127,-495.54722131,0.00019178,2]
[328181309,1717015844137,-218.70665024,0.00019178,2]
[328181310,1717015844146,-281.57632147,0.00019178,2]
[328181311,1717015844155,-500.0,0.00019178,2]
[328181312,1717015844164,-484.29181464,0.00019178,2]
[328181313,1717015844173,-500.0,0.00019178,2]
[328181314,1717015844182,-235.87142338,0.00019178,2]
[328181315,1717015844191,-210.6741758,0.00019178,2]
[328181316,1717015844200,-363.20225274,0.00019178,2]
[328181317,1717015844209,-155.65810831,0.00019178,2]
[328181318,1717015844219,-296.50519264,0.00019178,2]
[328181319,1717015844228,-350.0,0.00019178,2]
[328181320,1717015844237,-493.47033419,0.00019178,2]
[328181321,1717015844247,-350.0,0.00019178,2]
[328181322,1717015844256,-490.5156049,0.00019178,2]
[328181323,1717015844265,-444.17284476,0.00019178,2]